Cogmind - Beta 16.1 @@@ ROGUE MODE // 2026.03.22 @ 22:48:52 Player: Skythe Result: Destroyed by H-61 Shepherd with Heavy Assault Cannon Performance ------------- Evolutions (2) 1000 Regions Visited (3) 600 Robots Destroyed (35) 175 Value Destroyed (1094) 1094 Prototype IDs (0) 0 Alien Tech Used (0) 0 Bonus (0) 0 TOTAL SCORE: 2869 Bonus ------- None Cogmind --------- Core Integrity 0/550 Matter 146/300 Energy 98/100 System Corruption 0% Temperature Cool (9) Movement Walking (90) Location -8/Materials Parts ------- > --- POWER (2) -------- (None) > --- PROPULSION (3) --- VSS Leg > --- UTILITY (3) ------ (None) > --- WEAPON (3) ------- (None) > --- INVENTORY (5) ---- Light Treads EM Pulse Cannon Peak State ------------ > --- POWER ------------ Light Deuterium Engine Light Nuclear Core > --- PROPULSION ------- Light Treads Light Treads Carbon-fiber Leg > --- UTILITY ---------- Terrain Scanner Improved Terrain Scan Processor Particle Charger > --- WEAPON ----------- EM Pulse Cannon Particle Cannon Gauss Rifle > --- INVENTORY -------- Light Ion Engine Light Nuclear Core Small Storage Unit ECM Suite Hacking Suite [Rating: 27] Favorites ----------- Power Light Nuclear Core Engine Light Ion Engine Power Core Light Nuclear Core Propulsion Light Treads Treads Light Treads Leg Aluminum Leg Flight Unit VTOL Module Utility Small Storage Unit Device Terrain Scanner Storage Small Storage Unit Processor Salvage Targeting Computer Hackware Hacking Suite Protection Heavy Armor Plating Weapon Particle Cannon Energy Gun Particle Gun Energy Cannon Particle Cannon Ballistic Gun Light Assault Rifle Launcher Missile Launcher Build | -11 -10 -9 -8 ------- Run | Yrd Mat Mat Mat Slots Evolved 4 | . . 2 2 Power 1 | . . . 1 Propulsion 1 | . . 1 . Utility 1 | . . 1 . Weapon 1 | . . . 1 Parts Attached 41 | 6 2 13 20 Power 7 | 1 1 1 4 Engine 4 | 1 1 . 2 Core 3 | . . 1 2 Reactor . | . . . . Propulsion 13 | 2 . 6 5 Treads 4 | 2 . . 2 Leg 4 | . . 1 3 Wheel . | . . . . Hover . | . . . . Flight 5 | . . 5 . Utility 10 | 1 1 3 5 Device 4 | . . 2 2 Storage 1 | 1 . . . Processor 3 | . 1 1 1 Hackware 1 | . . . 1 Protection 1 | . . . 1 Artifact . | . . . . Weapon 11 | 2 . 3 6 Energy Gun 2 | . . 1 1 Energy Cannon 5 | . . 2 3 Ballistic Gun 3 | 2 . . 1 Ballistic Cannon . | . . . . Launcher 1 | . . . 1 Special Weapon . | . . . . Impact Weapon . | . . . . Slashing Weapon . | . . . . Piercing Weapon . | . . . . Special Melee Weapon . | . . . . Unidentified Prototypes . | . . . . Parts Lost 22 | . . 9 13 Power 5 | . . 2 3 Propulsion 8 | . . 5 3 Utility 3 | . . . 3 Weapon 6 | . . 2 4 Highest Loss Streak 7 | . . 4 7 To Critical Strikes . | . . . . Average Backups 4 | 1 7 4 4 Power . | . . . . Propulsion 1 | . 3 . . Utility 1 | . 1 1 1 Weapon 1 | . 1 1 1 Tool/Special . | . . . . Unused Backups 2 | . . 2 . Power . | . . . . Propulsion 2 | . . 2 . Utility . | . . . . Weapon . | . . . . Tool/Special . | . . . . Average Slot Usage (%) 81 | . 98 76 77 Engine 5 | . 14 1 5 Core 5 | . . 7 6 Treads 10 | . 28 3 8 Leg 5 | . . 4 9 Flight 2 | . . 7 . Device 9 | . . 10 12 Storage 9 | . 14 11 4 Processor 9 | . 12 11 5 Energy Gun 1 | . . 1 1 Energy Cannon 11 | . . 14 15 Ballistic Gun 9 | . 28 3 5 Peak Build Rating 27 | 6 9 13 27 Average Rating 13 | 4 8 11 19 On Entrance 6 | . 6 9 9 Avg Prop Armor Cover (%) 5 | . . 3 6 Naked Turns . | . . . . Heaviest Build 30 | 10 10 19 30 Greatest Support 40 | 40 40 40 40 Greatest Overweight (x) 8 | . . 6 8 Average Overweight (x) . | . . 1 . Largest Inventory Capacity 8 | 8 8 8 8 Average Capacity 7 | 7 8 8 6 Most Carried 8 | 5 8 7 8 Average Carried 4 | 2 7 4 4 Final Capacity 8 | 8 8 8 5 Final Carried 7 | 2 7 5 2 Class Distribution -------------------- 61% | Mutant 15% | Scavenger-Mutant 10% | Scavenger-Skirmisher 4% | Skirmisher 4% | Scavenger-Gunner Dominant Class ---------------- Mutant | -10/Materials Mutant | -9/Materials Scavenger-Skirmisher | -8/Materials Resources | -11 -10 -9 -8 ----------- Run | Yrd Mat Mat Mat Matter Collected 786 | 260 58 161 307 Remotely . | . . . . Salvage Created 1238 | . 120 443 675 Parts 70 | . 8 22 40 Haulers Intercepted . | . . . . Recyclers Shooed . | . . . . Parts Field Recycled . | . . . . Retrieved Matter . | . . . . Parts Self-Destructed . | . . . . Prevented . | . . . . Parts Restored . | . . . . Kills | -11 -10 -9 -8 ------- Run | Yrd Mat Mat Mat Combat Hostiles Destroyed 28 | . 2 11 15 Guns 14 | . 2 8 4 Cannons 12 | . . 3 9 AOE 2 | . . . 2 Classes Destroyed 11 | . 2 2 7 Worker 2 | . . . 2 Builder 2 | . . . 2 Mechanic 1 | . . . 1 Operator 1 | . 1 . . Watcher 1 | . . . 1 Swarmer 6 | . . 3 3 Grunt 15 | . 2 6 7 Duelist 1 | . . . 1 Sentry 4 | . . 2 2 Specialist 1 | . . . 1 Hunter 1 | . . . 1 Best Kill Streak 5 | . 1 4 5 Combat Bots Only 4 | . 1 4 3 Max Kills in Single Turn 3 | . 1 1 3 Gunslinging . | . . . . Exploded 2 | . . . 2 Melee . | . . . . Uniques/NPCs Destroyed . | . . . . Combat | -11 -10 -9 -8 -------- Run | Yrd Mat Mat Mat Hostile Shots Fired 282 | . 20 107 155 Missed 87 | . 10 26 51 Hits 195 | . 10 81 104 Melee 1 | . . . 1 Projectile 194 | . 10 81 103 AOE 1 | . . . 1 Critical Strikes 6 | . . 2 4 Damage Taken 3182 | . 108 1010 2064 Core 767 | . . 206 561 Absorbed by Shields . | . . . . Regen/Repaired (Parts) 26 | . . . 26 Core Remaining (%) 82 | 100 100 48 . Volleys Fired 131 | . 19 60 52 Largest 3 | . 2 2 3 Hottest 211 | . 40 136 211 Shots Fired 227 | . 38 83 106 Gun 143 | . 38 61 44 Cannon 76 | . . 22 54 Launcher 8 | . . . 8 Special . | . . . . Kinetic 125 | . 38 49 38 Thermal 67 | . . 22 45 Explosive 8 | . . . 8 Electromagnetic 27 | . . 12 15 Robot Hit Streak 15 | . 10 15 13 Robot Miss Streak 5 | . 3 5 2 Penetration Max 1 | . . . 1 Secondary Targets . | . . . . Shots Hit Robots 143 | . 26 58 59 Core Hits 67 | . 7 22 38 Critical Kills . | . . . . Critical Parts Destroyed 1 | . . . 1 Critical Strikes 2 | . . . 2 Destroy 2 | . . . 2 Melee Attacks . | . . . . Impact . | . . . . Slashing . | . . . . Piercing . | . . . . Sneak Attacks . | . . . . Combat Hostiles . | . . . . Follow-up Attacks . | . . . . Damage Inflicted 2882 | . 191 699 1992 Guns 1184 | . 191 392 601 Cannons 1006 | . . 305 701 Explosions 682 | . . . 682 Melee . | . . . . Ramming 10 | . . 2 8 Kinetic 988 | . 191 292 505 Thermal 844 | . . 305 539 Explosive 682 | . . . 682 Electromagnetic 358 | . . 100 258 Impact . | . . . . Slashing . | . . . . Piercing . | . . . . Highest Corruption . | . . . . Average Corruption . | . . . . Corruption Purged . | . . . . Corruption Blocked . | . . . . Overload Shots . | . . . . Overflow Damage 37 | . . . 37 Projectiles . | . . . . Explosions 37 | . . . 37 Melee . | . . . . Knockbacks . | . . . . Impact . | . . . . Kinetic . | . . . . Secondary . | . . . . Self-Inflicted Damage 47 | . . . 47 Shots 1 | . . . 1 Rammed . | . . . . Targets Rammed 2 | . . 1 1 Kicked 2 | . . 1 1 Crushed . | . . . . Highest Temperature 683 | . 12 250 683 Average Temperature 137 | . 6 72 170 Received Heat Transfer 1161 | . 60 453 648 Effects 25 | . . . 25 Shutdowns 7 | . . . 7 Energy Bleed 2 | . . . 2 Interference 6 | . . . 6 Matter Decay 1 | . . . 1 Short Circuit 1 | . . . 1 Damage (minor) 2 | . . . 2 Damage (major) 5 | . . . 5 Damage (core) 1 | . . . 1 Siege Activations . | . . . . Martial Activations . | . . . . Shielding Activations . | . . . . Robots Disrupted . | . . . . Combat Hostiles . | . . . . Robots Corrupted . | . . . . Combat Hostiles . | . . . . Parts Fried 2 | . . 2 . Impact Corruptions . | . . . . Robots Melted . | . . . . Combat Hostiles . | . . . . Parts Melted 3 | . . 2 1 Heat Transferred 1517 | . . 555 962 Parts Sabotaged . | . . . . Parts Stolen . | . . . . Parts Stripped . | . . . . Power Chain Reactions . | . . . . Alert | -11 -10 -9 -8 ------- Run | Yrd Mat Mat Mat Maximum Alert Level . | . . . . Low Security (%) 100 | 100 100 100 100 Level 1 . | . . . . Level 2 . | . . . . Level 3 . | . . . . Level 4 . | . . . . Level 5 . | . . . . High Security . | . . . . Max Security . | . . . . Peak Influence 135 | . 35 135 112 Initial 9 | . . 7 9 Average 29 | . 6 37 40 Influence Increases 862 | . 70 315 477 Destroy 0b10 Robot/C 560 | . 40 220 300 Destroy 0b10 Robot/NC 35 | . 5 . 30 Destroy Leader 132 | . 10 50 72 Successful Hack 22 | . . . 22 Disable Machine 15 | . . . 15 Destroy Structure 38 | . . . 38 Lose Combat Pursuer 60 | . 15 45 . Influence Decreases 772 | . 53 310 409 Entered New Map 23 | . . 10 13 Time Decay 549 | . 53 220 276 Lost Part 200 | . . 80 120 Squads Dispatched 7 | . 1 1 5 Investigation 1 | . . . 1 Extermination . | . . . . Reinforcement 6 | . 1 1 4 Assault . | . . . . Garrison . | . . . . Intercept . | . . . . Searches Triggered . | . . . . Construction Impeded 1 | . . . 1 Haulers Reinforced . | . . . . Active Scanning Responses . | . . . . Cargo Convoy Interrupts . | . . . . Stealth | -11 -10 -9 -8 --------- Run | Yrd Mat Mat Mat Distress Signals 2 | . . . 2 Communications Jammed . | . . . . Distress Signals . | . . . . Times Spotted 42 | . 4 15 23 Peak Tracking Total 7 | . 2 7 5 Tactical Retreats 3 | . 1 1 1 ECM-based Alert Blocks 1 | . . . 1 Traps | -11 -10 -9 -8 ------- Run | Yrd Mat Mat Mat Traps Triggered 1 | . . . 1 Indirectly . | . . . . Trap Hack Attempts . | . . . . Triggered . | . . . . Disarmed . | . . . . Reprogrammed . | . . . . Reused . | . . . . Traps Extracted . | . . . . Installed . | . . . . Triggered . | . . . . Machines | -11 -10 -9 -8 ---------- Run | Yrd Mat Mat Mat Machines Disabled 1 | . . . 1 Max in Single Turn 1 | . . . 1 Machines Repaired . | . . . . Machines Dismantled . | . . . . Machines Sabotaged . | . . . . Overloaded Fab Kills . | . . . . Hacking | -11 -10 -9 -8 --------- Run | Yrd Mat Mat Mat Machines Accessed 1 | . . . 1 Terminals . | . . . . Fabricators . | . . . . Repair Stations 1 | . . . 1 Recycling Units . | . . . . Scanalyzers . | . . . . Garrison Access . | . . . . Total Hacks 4 | . . . 4 Successful 3 | . . . 3 Failed 1 | . . . 1 Catastrophic . | . . . . Database Lockouts . | . . . . Manual . | . . . . Terminals . | . . . . Fabricators . | . . . . Repair Stations 4 | . . . 4 Recycling Units . | . . . . Scanalyzers . | . . . . Garrison Access . | . . . . Terminal Hacks . | . . . . Fabricator Hacks . | . . . . Repair Station Hacks 3 | . . . 3 Scan Component 2 | . . . 2 Repair 1 | . . . 1 Recycling Unit Hacks . | . . . . Scanalyzer . | . . . . Garrison Access Hacks . | . . . . Unauthorized Hacks . | . . . . Terminals . | . . . . Fabricators . | . . . . Repair Stations . | . . . . Recycling Units . | . . . . Scanalyzers . | . . . . Garrison Access . | . . . . Data Cores Recovered . | . . . . Used . | . . . . Hacking Detections 1 | . . . 1 Full Trace Events 1 | . . . 1 Feedback Events . | . . . . Feedback Blocked . | . . . . Robot Schematics Acquired . | . . . . Robots Built . | . . . . Authchips . | . . . . Time . | . . . . Total Robot Build Rating . | . . . . Part Schematics Acquired . | . . . . Parts Built . | . . . . Authchips . | . . . . Time . | . . . . Total Part Build Rating . | . . . . Part Studies Acquired . | . . . . Parts Repaired 1 | . . . 1 Time 19 | . . . 19 Parts Recycled . | . . . . Recycled Matter . | . . . . Retrieved Matter . | . . . . Retrieved Components . | . . . . Parts Scanalyzed . | . . . . Part Schematics Acquired . | . . . . Parts Damaged . | . . . . Bothacking | -11 -10 -9 -8 ------------ Run | Yrd Mat Mat Mat Used RIF Installer . | . . . . Robots Hacked . | . . . . Non-combat . | . . . . Combat . | . . . . Robot Hacks Applied . | . . . . Relay Couplers Released . | . . . . Fabnet Peak Effective % . | . . . . Robots Rewired . | . . . . Allies Hacked . | . . . . Hacks Repelled . | . . . . Allies | -11 -10 -9 -8 -------- Run | Yrd Mat Mat Mat Total Allies . | . . . . Largest Group . | . . . . Highest-Rated Group . | . . . . Highest-Rated Ally . | . . . . Total Orders . | . . . . Ally Attacks . | . . . . Total Damage . | . . . . Kills . | . . . . Allies Corrupted . | . . . . Allies Melted . | . . . . Intel | -11 -10 -9 -8 ------- Run | Yrd Mat Mat Mat Active Infowar (turns) 1404 | . . 696 708 Terrain 812 | . . 234 578 Structural 462 | . . 462 . ECM 131 | . . . 131 Robot Analysis Total . | . . . . Derelict Logs Recovered . | . . . . Drone Launches . | . . . . Drone Recoveries . | . . . . Exploration | -11 -10 -9 -8 ------------- Run | Yrd Mat Mat Mat Turns Passed 2016 | 128 410 700 778 Spaces Moved 938 | 85 220 322 311 Core 90 | 19 . 45 26 Treads 415 | 66 220 25 104 Legs 323 | . . 142 181 Wheels . | . . . . Hover . | . . . . Flight 110 | . . 110 . Fastest Speed 29 | 50 160 29 105 Average Speed 162 | 135 160 164 170 Slowest Speed 450 | 160 160 350 450 Overloaded Moves . | . . . . Propulsion Burnouts . | . . . . Robots Hopped . | . . . . Potential Cave-ins . | . . . . Cave-ins Triggered . | . . . . Exploration Rate (%) 24 | 5 34 24 35 Regions Visited 3 Branch Regions . Pre-discovered Areas . | . . . . Known Exits Taken . | . . . . Unknown Exits Taken 3 | 1 1 1 . Scrap Searched . | . . . . Spaces Dug . | . . . . Terrain Destroyed 35 | . . . 35 Melee . | . . . . Projectile 9 | . . . 9 AOE 26 | . . . 26 Terrain Rammed . | . . . . Walls Destroyed . | . . . . Machines Disabled . | . . . . Actions | -11 -10 -9 -8 --------- Run | Yrd Mat Mat Mat Total 1229 | 98 248 418 465 Wait 52 | . . 5 47 Move 935 | 84 219 321 311 Hop . | . . . . Pick Up 44 | 8 7 11 18 Fast Attach . | . . . . Attach 32 | 6 2 10 14 Detach 2 | . . 1 1 Swap 15 | . . 5 10 Drop 16 | . 1 4 11 Fire 131 | . 19 60 52 Melee . | . . . . Ram . | . . . . Kick 2 | . . 1 1 Crush . | . . . . Escape Stasis . | . . . . Rewire . | . . . . Trap . | . . . . Miscellaneous . | . . . . Route ------- -11/Scrapyard -10/Materials (discovered 2 exits: [*Mat] / [*Min]) -9/Materials (discovered 2 exits: *Mat / [*Sto]) -8/Materials History --------- Turn | Location | Event 37 | -11/Scrapyard | Discovered new exit (range 15) 129 | -11/Scrapyard | Entered Materials 130 | -10/Materials | Met a group of wandering Federalists 188 | -10/Materials | Discovered new exit (range 15) 264 | -10/Materials | Discovered new exit (range 13) 304 | -10/Materials | Build established: Mutant 539 | -10/Materials | Entered another Materials area 539 | -9/Materials | Evolved 2 slots: Propulsion x1, Utility x1 584 | -9/Materials | Discovered new exit (range 8) 659 | -9/Materials | Lost 4 parts (1p2n1w) 746 | -9/Materials | Lost 4 parts (3n1w) 1064 | -9/Materials | Discovered new exit (range 16) 1175 | -9/Materials | Core integrity fell below 50% 1239 | -9/Materials | Entered another Materials area 1239 | -8/Materials | Evolved 2 slots: Power x1, Weapon x1 1688 | -8/Materials | Core integrity fell below 50% 1876 | -8/Materials | Repaired Lgt. Nuclear Core 1948 | -8/Materials | Core integrity fell below 20% 2017 | -8/Materials | Destroyed by H-61 Shepherd with Heavy Assault Cannon Last Messages --------------- Destroyed Targeting Computer. X-62 Marksman destroyed. Destroyed Wheel. M-13 Machinist destroyed. Missile Launcher destroyed. Penetrated by Slug. K-01 Serf collects debris. Penetrated by Slug. Critical hit (Burn: +37). Slug penetrates H-61 Shepherd. K-01 Serf collects debris. K-01 Serf destroyed. Slug penetrates H-61 Shepherd. K-01 Serf collects debris. Slug penetrates H-61 Shepherd. Penetrated by Slug. Hvy. Armor Plating destroyed. Slug penetrates H-61 Shepherd. K-01 Serf collects debris. Gauss Rifle destroyed. Map ----- +----------------------------------------------------+ | # #????????????????????????????????????????????? | | # #????????????????????????????????????????????? | | # #????????????????????????????????????????????? | | # #????????????????????????????????????????????? | | # #????????????????????????????????????????????? | | # #????????????????????????????????????????????? | | # ##???????????????????????????????????????????? | | # #????????????????????????????????????????????? | | # ##?#?????????????????????????????????????????? | | #######+###?????????????????????????????????? | | ##????????????????????????????????? | | ???????????????????????????????? | | #?????????????????????????????????? | | ######### #?????????????????????????????????? | | ## ###???????????????????????????????????????????? | | ## ####??????????????????????????????????????????? | | ## "" ##?????????????????????????????????????????? | | ## """# ????? #???????????????#?????????????????? | | ## R"# ??? #??????##?????? #?????????????????? | | ## """# """ #???#### ######+#####?????????????? | | ## #### """ #???# ; k #?????????????? | | ## #??# #????# = T #?????????????? | | ## #??# """ ####### =% #####?????????? | | #??# """ / ? / * #?????????? | | ## #??? """ #?##### = #????????????? | | # ##???? ???#"""# %@ #??###???????? | | # T???####+######"Y"##### H #???????? | | # ##??# % % = #???????? | | #[##### % % +???????? | | +* = ==* % #???????? | | ########+########+######T## g # !k #???????? | | ##?#?# #?? ????###? #? ##???????? | | #?#?##""" #?? ???????? x ] #? #????????? | | ##???#""" #? ??????? #???#????????? | | #????#""" #? ???????? + ???????????? | | ?#??#""" # """ ""???????"" """ # ???????????? | | ???+ # """ ""???????"" """ #????????????? | | ???#? # """ """???????? ""? ?????????????? | | #??? # ?????????? ????????????????? | | ??#?# ##???+#??????????? ????????????????? | | ?##???##+#####?????????????????##???????????????? | | ???##???????????????????????????????????????????? | | ????#? ????????????????????????????????????????? | | ???? ? ?????????????????????????????????????????? | | ?#???? ????????????????????????????????????????? | | +#???#???????????????????????????????????????????? | | ??? ?????????????????????????????????????????????? | | "? ?#???????????????????????????????????????????? | | ??? ?????????????????????????????????????????????? | | ?????????????????????????????????????????????????? | +----------------------------------------------------+ Best States ------------- Heat Dissipation 31 Energy Generation 23 Energy Capacity 220 Matter Stores 300 Matter Capacity 300 Sight Range 16 Terrain Scan Range 14 Terrain Scan Density 110 ECM Strength 1 Armor Coverage 600 Evasion (%) 64 Recoil Reduction 2 Particle Charging 15 Salvage Targeting 1 Offensive Hacking 10 Item Schematics ----------------- None Robot Schematics ------------------ None Fabricated ------------ Nothing Repaired ---------- Lgt. Nuclear Core | 48% | -8/Materials Studied --------- None Alien Tech Used ----------------- None Achievements -------------- Heavy Suspicion Challenges ------------ None Game ------ Seed ImpulseEtherialHarness Manual? 0 Play Time 00:21:10 Cumulative 5.1 hours Start 2026.03.22 @ 22:26:31 End 2026.03.22 @ 22:48:52 Sessions 1 Manual Loads 0 Difficulty Rogue Special Mode None Game No. 18 Rogue 18 Adventurer 0 Explorer 0 Win Type - Total 0 Types 0/0/0/0/0/0/0/0/0/0 Lore% 2 Gallery% 10 Achievement% 10 Wizard Run 0 Options --------- Layout 1 ASCII 0 Keyboard 0 Movement Arrows Keybinds 0 Fullscreen 1 Font 24/Proggy Map View 50x35 Zoom Use 0% Tactical HUD 0 Map Filters NONE Filters NONE Steam 1 RUN: 7e927243-a248-4888-afbf-5bbebf76ab28